Body Name,Body,Service Division,Expense Type,Date Paid,Transaction Ref,Invoice Amount,Supplier Name
East Lindsey District Council,http://statistics.data.gov.uk/id/local-authority/32UC,AD Capital - Regulation,Employee Professional Subscriptions (Non-Payroll),05/01/2023,30017270,981.00 ,Thomson Reuters
East Lindsey District Council,http://statistics.data.gov.uk/id/local-authority/32UC,AD Capital - Regulation,Professional and Contractors Fees,05/01/2023,30017618,"2,822.50 ",Lincolnshire County Council
East Lindsey District Council,http://statistics.data.gov.uk/id/local-authority/32UC,AD Capital - Regulation,Professional and Contractors Fees,31/01/2023,30018660,229.18 ,Hill Phelan Equine Farm Vet Surgeons
East Lindsey District Council,http://statistics.data.gov.uk/id/local-authority/32UC,AD Capital - Regulation,Professional Fees,26/01/2023,30018246,664.87 ,Ark Givendale Ltd
East Lindsey District Council,http://statistics.data.gov.uk/id/local-authority/32UC,AD Chief Finance Officer,Conference and Seminars,19/01/2023,30017565,360.00 ,Boston United Football Club Ltd
East Lindsey District Council,http://statistics.data.gov.uk/id/local-authority/32UC,AD Chief Finance Officer,Lincolnshire Legal Services,24/01/2023,30018350,"7,657.43 ",Lincolnshire County Council
East Lindsey District Council,http://statistics.data.gov.uk/id/local-authority/32UC,AD Chief Finance Officer,Non-Domestic Rates Income,24/01/2023,30017979,"681,854.00 ",Lincolnshire County Council
East Lindsey District Council,http://statistics.data.gov.uk/id/local-authority/32UC,AD Chief Finance Officer,Other Communication Costs,26/01/2023,30018470,800.00 ,Lisa Jayne Creative Ltd
East Lindsey District Council,http://statistics.data.gov.uk/id/local-authority/32UC,AD Chief Finance Officer,Other Employee Expenses,19/01/2023,30018168,"5,834.00 ",H M Revenue and Customs
East Lindsey District Council,http://statistics.data.gov.uk/id/local-authority/32UC,AD Chief Finance Officer,Other Income,19/01/2023,30018169,-23.80 ,Unison
East Lindsey District Council,http://statistics.data.gov.uk/id/local-authority/32UC,AD Chief Finance Officer,Other local authorities,24/01/2023,30018349,"15,050.00 ",Lincolnshire County Council
East Lindsey District Council,http://statistics.data.gov.uk/id/local-authority/32UC,AD Chief Finance Officer,Other Private Contractors,19/01/2023,30016710,"2,817.10 ",Public Sector Partnership Services Ltd
East Lindsey District Council,http://statistics.data.gov.uk/id/local-authority/32UC,AD Chief Finance Officer,Postages,19/01/2023,30018031,360.00 ,Royal Mail Group Ltd
East Lindsey District Council,http://statistics.data.gov.uk/id/local-authority/32UC,AD Chief Finance Officer,Professional and Contractors Fees,12/01/2023,30017876,500.00 ,Lincolnshire County Council
East Lindsey District Council,http://statistics.data.gov.uk/id/local-authority/32UC,AD Chief Finance Officer,Public Courses and Workshops,19/01/2023,30018218,360.00 ,Boston United Football Club Ltd
East Lindsey District Council,http://statistics.data.gov.uk/id/local-authority/32UC,AD Chief Finance Officer,Public Sector Partnership Services,09/01/2023,30018045,"431,944.83 ",Public Sector Partnership Services Ltd
East Lindsey District Council,http://statistics.data.gov.uk/id/local-authority/32UC,AD Chief Finance Officer,Vehicle Hire,24/01/2023,30018355,272.18 ,Tjs Self Drive
East Lindsey District Council,http://statistics.data.gov.uk/id/local-authority/32UC,AD Economic Growth,Professional Fees,10/01/2023,30017854,"4,836.00 ",Lk2 Architects Ltd
East Lindsey District Council,http://statistics.data.gov.uk/id/local-authority/32UC,AD Housing & Wellbeing,Bed and Breakfast Accommodation (Homelessness Service),05/01/2023,30017626,500.00 ,Regent Hotel
East Lindsey District Council,http://statistics.data.gov.uk/id/local-authority/32UC,AD Housing & Wellbeing,Bed and Breakfast Accommodation (Homelessness Service),05/01/2023,30017646,"2,242.00 ",Simplifying Cleaning LTD
East Lindsey District Council,http://statistics.data.gov.uk/id/local-authority/32UC,AD Housing & Wellbeing,Bed and Breakfast Accommodation (Homelessness Service),26/01/2023,30018428,"1,890.00 ",Beeston Lodge Hotel
East Lindsey District Council,http://statistics.data.gov.uk/id/local-authority/32UC,AD Housing & Wellbeing,Bed and Breakfast Accommodation (Homelessness Service),31/01/2023,30018429,595.00 ,Beeston Lodge Hotel
East Lindsey District Council,http://statistics.data.gov.uk/id/local-authority/32UC,AD Housing & Wellbeing,Computer Software Purchase,28/10/2022,30017616,280.00 ,MRI Housing Partners
East Lindsey District Council,http://statistics.data.gov.uk/id/local-authority/32UC,AD Housing & Wellbeing,Computer Software Purchase,24/01/2023,30018353,280.00 ,Housing Partners Limited
East Lindsey District Council,http://statistics.data.gov.uk/id/local-authority/32UC,AD Housing & Wellbeing,Furniture and Equipment,24/01/2023,30017955,"1,150.95 ",Alertcom Limited
East Lindsey District Council,http://statistics.data.gov.uk/id/local-authority/32UC,AD Housing & Wellbeing,Grants and Contributions to Outside Bodies - No Service Received,03/01/2023,30017573,400.00 ,"""Personal Information Redacted"""
East Lindsey District Council,http://statistics.data.gov.uk/id/local-authority/32UC,AD Housing & Wellbeing,Grants and Contributions to Outside Bodies - No Service Received,05/01/2023,30017585,"2,000.00 ",The Storehouse Church Skegness
East Lindsey District Council,http://statistics.data.gov.uk/id/local-authority/32UC,AD Housing & Wellbeing,Grants and Contributions to Outside Bodies - No Service Received,05/01/2023,30017586,"2,000.00 ",Mablethorpe and Sutton on Sea Coastal Community Team
East Lindsey District Council,http://statistics.data.gov.uk/id/local-authority/32UC,AD Housing & Wellbeing,Grants and Contributions to Outside Bodies - No Service Received,05/01/2023,30017628,"20,000.00 ",Charis Grants Ltd
East Lindsey District Council,http://statistics.data.gov.uk/id/local-authority/32UC,AD Housing & Wellbeing,Grants and Contributions to Outside Bodies - No Service Received,05/01/2023,30017647,"53,184.22 ",Brians Building Services
East Lindsey District Council,http://statistics.data.gov.uk/id/local-authority/32UC,AD Housing & Wellbeing,Grants and Contributions to Outside Bodies - No Service Received,05/01/2023,30017648,"16,155.94 ",J H Smithson and Son Ltd
East Lindsey District Council,http://statistics.data.gov.uk/id/local-authority/32UC,AD Housing & Wellbeing,Grants and Contributions to Outside Bodies - No Service Received,05/01/2023,30017649,"25,550.36 ",Acis HomePlus Limited
East Lindsey District Council,http://statistics.data.gov.uk/id/local-authority/32UC,AD Housing & Wellbeing,Grants and Contributions to Outside Bodies - No Service Received,10/01/2023,30017715,"35,259.20 ",Royal Air Force Benevolent Fund
East Lindsey District Council,http://statistics.data.gov.uk/id/local-authority/32UC,AD Housing & Wellbeing,Grants and Contributions to Outside Bodies - No Service Received,12/01/2023,30017991,"1,000.00 ",Horncastle and District Community Assoc
East Lindsey District Council,http://statistics.data.gov.uk/id/local-authority/32UC,AD Housing & Wellbeing,Grants and Contributions to Outside Bodies - No Service Received,12/01/2023,30017995,"5,302.56 ",Ron Gale and Sons Ltd
East Lindsey District Council,http://statistics.data.gov.uk/id/local-authority/32UC,AD Housing & Wellbeing,Grants and Contributions to Outside Bodies - No Service Received,12/01/2023,30018000,"13,910.00 ",AGE UK LINDSEY
East Lindsey District Council,http://statistics.data.gov.uk/id/local-authority/32UC,AD Housing & Wellbeing,Grants and Contributions to Outside Bodies - No Service Received,19/01/2023,30018013,"2,000.00 ",The LighthouseProject
East Lindsey District Council,http://statistics.data.gov.uk/id/local-authority/32UC,AD Housing & Wellbeing,Grants and Contributions to Outside Bodies - No Service Received,17/01/2023,30018019,760.00 ,Robb & Meik
East Lindsey District Council,http://statistics.data.gov.uk/id/local-authority/32UC,AD Housing & Wellbeing,Grants and Contributions to Outside Bodies - No Service Received,17/01/2023,30018118,"83,071.86 ",Brians Building Services
East Lindsey District Council,http://statistics.data.gov.uk/id/local-authority/32UC,AD Housing & Wellbeing,Grants and Contributions to Outside Bodies - No Service Received,17/01/2023,30018167,"10,500.00 ",Obam Stairlifts
East Lindsey District Council,http://statistics.data.gov.uk/id/local-authority/32UC,AD Housing & Wellbeing,Grants and Contributions to Outside Bodies - No Service Received,26/01/2023,30018251,"1,000.00 ",Lincolnshire CVS
East Lindsey District Council,http://statistics.data.gov.uk/id/local-authority/32UC,AD Housing & Wellbeing,Grants and Contributions to Outside Bodies - No Service Received,24/01/2023,30018312,"9,206.00 ",Closomat Ltd
East Lindsey District Council,http://statistics.data.gov.uk/id/local-authority/32UC,AD Housing & Wellbeing,Grants and Contributions to Outside Bodies - No Service Received,24/01/2023,30018419,"12,053.28 ",Walkers Construction Ltd
East Lindsey District Council,http://statistics.data.gov.uk/id/local-authority/32UC,AD Housing & Wellbeing,Grants and Contributions to Outside Bodies - No Service Received,24/01/2023,30018424,"20,000.00 ",Lincolnshire Community Foundation
East Lindsey District Council,http://statistics.data.gov.uk/id/local-authority/32UC,AD Housing & Wellbeing,Grants and Contributions to Outside Bodies - No Service Received,31/01/2023,30018528,"2,000.00 ",The Storehouse Church Alford
East Lindsey District Council,http://statistics.data.gov.uk/id/local-authority/32UC,AD Housing & Wellbeing,Grants and Contributions to Outside Bodies - No Service Received,31/01/2023,30018530,400.00 ,Mareham Le Fen and District Village Hall
East Lindsey District Council,http://statistics.data.gov.uk/id/local-authority/32UC,AD Housing & Wellbeing,Grants and Contributions to Outside Bodies - No Service Received,31/01/2023,30018533,400.00 ,Wragby Chef
East Lindsey District Council,http://statistics.data.gov.uk/id/local-authority/32UC,AD Housing & Wellbeing,Grants and Contributions to Outside Bodies - No Service Received,26/01/2023,30018537,"2,000.00 ",Furnchurch
East Lindsey District Council,http://statistics.data.gov.uk/id/local-authority/32UC,AD Housing & Wellbeing,Grants and Contributions to Outside Bodies - No Service Received,31/01/2023,30018540,553.00 ,"""Personal Information Redacted"""
East Lindsey District Council,http://statistics.data.gov.uk/id/local-authority/32UC,AD Housing & Wellbeing,Grants and Contributions to Outside Bodies - No Service Received,31/01/2023,30018675,"12,331.42 ",Gary Walmsley Construction
East Lindsey District Council,http://statistics.data.gov.uk/id/local-authority/32UC,AD Housing & Wellbeing,Grants and Contributions to Outside Bodies - No Service Received,31/01/2023,30018676,624.00 ,Denniss and Marwood Ltd
East Lindsey District Council,http://statistics.data.gov.uk/id/local-authority/32UC,AD Housing & Wellbeing,Grants and Contributions to Outside Bodies - No Service Received,31/01/2023,30018679,"1,997.04 ",Kes Building
East Lindsey District Council,http://statistics.data.gov.uk/id/local-authority/32UC,AD Housing & Wellbeing,Grants and Contributions to Outside Bodies - No Service Received,31/01/2023,30018680,"4,368.00 ",Obam Stairlifts
East Lindsey District Council,http://statistics.data.gov.uk/id/local-authority/32UC,AD Housing & Wellbeing,Other local authorities,19/01/2023,30018046,"255,540.40 ",North Kesteven District Council
East Lindsey District Council,http://statistics.data.gov.uk/id/local-authority/32UC,AD Housing & Wellbeing,Other Miscellaneous Expenses,12/01/2023,30017593,"1,000.00 ",iHasco Ltd
East Lindsey District Council,http://statistics.data.gov.uk/id/local-authority/32UC,AD Housing & Wellbeing,Other Revenue Grants Reimbursements and Contributions (Non-Government),17/01/2023,30018006,400.00 ,Trusthorpe Village Hall
East Lindsey District Council,http://statistics.data.gov.uk/id/local-authority/32UC,AD Housing & Wellbeing,Other Revenue Grants Reimbursements and Contributions (Non-Government),17/01/2023,30018007,400.00 ,Spilsby Christian Fellowship
East Lindsey District Council,http://statistics.data.gov.uk/id/local-authority/32UC,AD Housing & Wellbeing,Other Revenue Grants Reimbursements and Contributions (Non-Government),12/01/2023,30018008,400.00 ,Mablethorpe Area Partnership
East Lindsey District Council,http://statistics.data.gov.uk/id/local-authority/32UC,AD Housing & Wellbeing,Other Revenue Grants Reimbursements and Contributions (Non-Government),19/01/2023,30018014,400.00 ,The LighthouseProject
East Lindsey District Council,http://statistics.data.gov.uk/id/local-authority/32UC,AD Housing & Wellbeing,Other Revenue Grants Reimbursements and Contributions (Non-Government),24/01/2023,30018211,400.00 ,Bucknall Village Hall
East Lindsey District Council,http://statistics.data.gov.uk/id/local-authority/32UC,AD Housing & Wellbeing,Other Revenue Grants Reimbursements and Contributions (Non-Government),24/01/2023,30018212,400.00 ,Alford Town Council
East Lindsey District Council,http://statistics.data.gov.uk/id/local-authority/32UC,AD Housing & Wellbeing,Other Revenue Grants Reimbursements and Contributions (Non-Government),24/01/2023,30018213,400.00 ,Trinity Centre
East Lindsey District Council,http://statistics.data.gov.uk/id/local-authority/32UC,AD Housing & Wellbeing,Other Revenue Grants Reimbursements and Contributions (Non-Government),26/01/2023,30018509,400.00 ,The Storehouse Church Alford
East Lindsey District Council,http://statistics.data.gov.uk/id/local-authority/32UC,AD Housing & Wellbeing,Professional and Contractors Fees,12/01/2023,30017856,"1,460.00 ",Lincs Digital
East Lindsey District Council,http://statistics.data.gov.uk/id/local-authority/32UC,AD Housing & Wellbeing,Rent Payments,10/01/2023,30017770,378.14 ,Salvation Army
East Lindsey District Council,http://statistics.data.gov.uk/id/local-authority/32UC,AD Housing & Wellbeing,Rent Payments,10/01/2023,30017771,"1,080.40 ",Salvation Army
East Lindsey District Council,http://statistics.data.gov.uk/id/local-authority/32UC,AD Housing & Wellbeing,Rent Payments,10/01/2023,30017779,940.47 ,Salvation Army
East Lindsey District Council,http://statistics.data.gov.uk/id/local-authority/32UC,AD Housing & Wellbeing,Rent Payments,10/01/2023,30017780,"1,944.72 ",Salvation Army
East Lindsey District Council,http://statistics.data.gov.uk/id/local-authority/32UC,AD Housing & Wellbeing,Rent Payments,10/01/2023,30017781,702.26 ,Salvation Army
East Lindsey District Council,http://statistics.data.gov.uk/id/local-authority/32UC,AD Housing & Wellbeing,Rent Payments,10/01/2023,30017783,"1,253.00 ",Salvation Army
East Lindsey District Council,http://statistics.data.gov.uk/id/local-authority/32UC,AD Housing & Wellbeing,Rent Payments,10/01/2023,30017785,313.25 ,Salvation Army
East Lindsey District Council,http://statistics.data.gov.uk/id/local-authority/32UC,AD Housing & Wellbeing,Rent Payments,10/01/2023,30017796,613.35 ,Salvation Army
East Lindsey District Council,http://statistics.data.gov.uk/id/local-authority/32UC,AD Housing & Wellbeing,Rent Payments,31/01/2023,30018139,"1,215.33 ",Platform Housing Limited
East Lindsey District Council,http://statistics.data.gov.uk/id/local-authority/32UC,AD Housing & Wellbeing,Rent Payments,31/01/2023,30018140,991.46 ,Platform Housing Limited
East Lindsey District Council,http://statistics.data.gov.uk/id/local-authority/32UC,AD Housing & Wellbeing,Rent Payments,31/01/2023,30018141,950.00 ,Platform Housing Limited
East Lindsey District Council,http://statistics.data.gov.uk/id/local-authority/32UC,AD Housing & Wellbeing,Rent Payments,31/01/2023,30018143,"1,145.80 ",Platform Housing Limited
East Lindsey District Council,http://statistics.data.gov.uk/id/local-authority/32UC,AD Housing & Wellbeing,Rent Payments,31/01/2023,30018145,"1,059.68 ",Platform Housing Limited
East Lindsey District Council,http://statistics.data.gov.uk/id/local-authority/32UC,AD Housing & Wellbeing,Rent Payments,31/01/2023,30018146,"1,075.49 ",Platform Housing Limited
East Lindsey District Council,http://statistics.data.gov.uk/id/local-authority/32UC,AD Housing & Wellbeing,Rent Payments,31/01/2023,30018147,"1,059.68 ",Platform Housing Limited
East Lindsey District Council,http://statistics.data.gov.uk/id/local-authority/32UC,AD Housing & Wellbeing,Rent Payments,31/01/2023,30018151,"1,059.68 ",Platform Housing Limited
East Lindsey District Council,http://statistics.data.gov.uk/id/local-authority/32UC,AD Housing & Wellbeing,Rent Payments,31/01/2023,30018152,"1,075.49 ",Platform Housing Limited
East Lindsey District Council,http://statistics.data.gov.uk/id/local-authority/32UC,AD Housing & Wellbeing,Rent Payments,31/01/2023,30018153,"1,059.68 ",Platform Housing Limited
East Lindsey District Council,http://statistics.data.gov.uk/id/local-authority/32UC,AD Housing & Wellbeing,Rent Payments,31/01/2023,30018154,"1,023.74 ",Platform Housing Limited
East Lindsey District Council,http://statistics.data.gov.uk/id/local-authority/32UC,AD Housing & Wellbeing,Rent Payments,31/01/2023,30018155,969.79 ,Platform Housing Limited
East Lindsey District Council,http://statistics.data.gov.uk/id/local-authority/32UC,AD Housing & Wellbeing,Rent Payments,31/01/2023,30018156,847.96 ,Platform Housing Limited
East Lindsey District Council,http://statistics.data.gov.uk/id/local-authority/32UC,AD Housing & Wellbeing,Rent Payments,03/02/2023,30018157,847.96 ,Platform Housing Limited
East Lindsey District Council,http://statistics.data.gov.uk/id/local-authority/32UC,AD Housing & Wellbeing,Rent Payments,31/01/2023,30018158,339.89 ,Platform Housing Limited
East Lindsey District Council,http://statistics.data.gov.uk/id/local-authority/32UC,AD Housing & Wellbeing,Rent Payments,03/02/2023,30018159,"1,053.92 ",Platform Housing Limited
East Lindsey District Council,http://statistics.data.gov.uk/id/local-authority/32UC,AD Housing & Wellbeing,Rent Payments,31/01/2023,30018163,317.77 ,Platform Housing Limited
East Lindsey District Council,http://statistics.data.gov.uk/id/local-authority/32UC,AD Housing & Wellbeing,Rent Payments,31/01/2023,30018683,425.00 ,Geo Properties
East Lindsey District Council,http://statistics.data.gov.uk/id/local-authority/32UC,AD Housing & Wellbeing,Rent Payments,31/01/2023,30018684,475.00 ,Geo Properties
East Lindsey District Council,http://statistics.data.gov.uk/id/local-authority/32UC,AD Housing & Wellbeing,Staff Training Expenses (Non-Payroll),26/01/2023,30018502,"3,850.80 ",Public Sector Partnership Services Ltd
East Lindsey District Council,http://statistics.data.gov.uk/id/local-authority/32UC,AD Leisure & Culture,Buildings Maintenance - Programmed,10/01/2023,30017656,"1,150.00 ",Bates Environmental Ltd
East Lindsey District Council,http://statistics.data.gov.uk/id/local-authority/32UC,AD Leisure & Culture,Buildings Maintenance - Programmed,12/01/2023,30017670,"3,908.00 ",H20 Servicing Ltd
East Lindsey District Council,http://statistics.data.gov.uk/id/local-authority/32UC,AD Leisure & Culture,Buildings Maintenance - Programmed,17/01/2023,30017693,"3,028.40 ",Capital Floors Ltd
East Lindsey District Council,http://statistics.data.gov.uk/id/local-authority/32UC,AD Leisure & Culture,Buildings Maintenance - Programmed,31/01/2023,30017733,"8,160.22 ",Aaron Services Ltd
East Lindsey District Council,http://statistics.data.gov.uk/id/local-authority/32UC,AD Leisure & Culture,Buildings Maintenance - Programmed,12/01/2023,30017975,486.56 ,TVF UK Limited
East Lindsey District Council,http://statistics.data.gov.uk/id/local-authority/32UC,AD Leisure & Culture,Buildings Maintenance - Programmed,17/01/2023,30018034,984.00 ,Aegis Technologies
East Lindsey District Council,http://statistics.data.gov.uk/id/local-authority/32UC,AD Leisure & Culture,Buildings Maintenance - Programmed,19/01/2023,30018208,"1,655.00 ",Aegis Technologies
East Lindsey District Council,http://statistics.data.gov.uk/id/local-authority/32UC,AD Leisure & Culture,Buildings Maintenance - Programmed,19/01/2023,30018209,486.56 ,TVF UK Limited
East Lindsey District Council,http://statistics.data.gov.uk/id/local-authority/32UC,AD Leisure & Culture,Buildings Maintenance - Programmed,19/01/2023,30018210,425.80 ,TVF UK Limited
East Lindsey District Council,http://statistics.data.gov.uk/id/local-authority/32UC,AD Leisure & Culture,Buildings Maintenance - Programmed,26/01/2023,30018532,"1,940.00 ",Audience System Ltd
East Lindsey District Council,http://statistics.data.gov.uk/id/local-authority/32UC,AD Leisure & Culture,Buildings Maintenance - Responsive,05/01/2023,30017589,"2,850.00 ",Lincoln Security Ltd
East Lindsey District Council,http://statistics.data.gov.uk/id/local-authority/32UC,AD Leisure & Culture,Buildings Maintenance - Responsive,12/01/2023,30017666,"2,452.20 ",H20 Servicing Ltd
East Lindsey District Council,http://statistics.data.gov.uk/id/local-authority/32UC,AD Leisure & Culture,Buildings Maintenance - Responsive,12/01/2023,30017667,"4,260.00 ",H20 Servicing Ltd
East Lindsey District Council,http://statistics.data.gov.uk/id/local-authority/32UC,AD Leisure & Culture,Buildings Maintenance - Responsive,12/01/2023,30017668,"2,066.20 ",H20 Servicing Ltd
East Lindsey District Council,http://statistics.data.gov.uk/id/local-authority/32UC,AD Leisure & Culture,Buildings Maintenance - Responsive,17/01/2023,30017713,253.50 ,Morris Vermaport Ltd
East Lindsey District Council,http://statistics.data.gov.uk/id/local-authority/32UC,AD Leisure & Culture,Buildings Maintenance - Responsive,31/01/2023,30017733,"1,527.72 ",Aaron Services Ltd
East Lindsey District Council,http://statistics.data.gov.uk/id/local-authority/32UC,AD Leisure & Culture,Buildings Maintenance - Responsive,24/01/2023,30017734,"2,750.00 ",Replay Maintenance Ltd
East Lindsey District Council,http://statistics.data.gov.uk/id/local-authority/32UC,AD Leisure & Culture,Buildings Maintenance - Responsive,12/01/2023,30018016,573.97 ,Airco Refrigeration Air Conditioning Ltd
East Lindsey District Council,http://statistics.data.gov.uk/id/local-authority/32UC,AD Leisure & Culture,Buildings Maintenance - Responsive,07/02/2023,30018338,420.00 ,Airco Refrigeration Air Conditioning Ltd
East Lindsey District Council,http://statistics.data.gov.uk/id/local-authority/32UC,AD Leisure & Culture,Leisure Management,26/01/2023,30018496,"50,000.00 ",Magna Vitae
East Lindsey District Council,http://statistics.data.gov.uk/id/local-authority/32UC,AD Organisational & Corporate Services,Purchase of Hardware,10/01/2023,30017802,"2,623.90 ",Matrix Network Services Ltd
East Lindsey District Council,http://statistics.data.gov.uk/id/local-authority/32UC,AD Organisational & Corporate Services,Purchase of Hardware,10/01/2023,30017839,"4,200.00 ",Softcat Plc
East Lindsey District Council,http://statistics.data.gov.uk/id/local-authority/32UC,AD Organisational & Corporate Services,Purchase of Hardware,24/01/2023,30017870,"4,418.92 ",Softcat Plc
East Lindsey District Council,http://statistics.data.gov.uk/id/local-authority/32UC,AD Organisational & Corporate Services,Purchase of Hardware,17/01/2023,30018102,219.00 ,Matrix Network Services Ltd
East Lindsey District Council,http://statistics.data.gov.uk/id/local-authority/32UC,AD Organisational & Corporate Services,Purchase of Hardware,03/02/2023,30018115,"1,400.00 ",Infrasys Ltd
East Lindsey District Council,http://statistics.data.gov.uk/id/local-authority/32UC,AD Organisational & Corporate Services,Purchase of Hardware,03/02/2023,30018131,"24,596.47 ",Pure Audio Visual Ltd
East Lindsey District Council,http://statistics.data.gov.uk/id/local-authority/32UC,Climate Change and Environment,Professional and Contractors Fees,17/01/2023,30018071,"22,302.72 ",Perfect Circle Jv Ltd
East Lindsey District Council,http://statistics.data.gov.uk/id/local-authority/32UC,Climate Change and Environment,Professional and Contractors Fees,17/01/2023,30018072,"21,120.00 ",Perfect Circle Jv Ltd
East Lindsey District Council,http://statistics.data.gov.uk/id/local-authority/32UC,Climate Change and Environment,Professional and Contractors Fees,17/01/2023,30018073,"11,792.00 ",Perfect Circle Jv Ltd
East Lindsey District Council,http://statistics.data.gov.uk/id/local-authority/32UC,Climate Change and Environment,Professional Fees,10/01/2023,30017735,"14,935.90 ",Everwarm Ltd
East Lindsey District Council,http://statistics.data.gov.uk/id/local-authority/32UC,Climate Change and Environment,Professional Fees,24/01/2023,30017758,"2,350.00 ",Gleeds Building Surveying Limited
East Lindsey District Council,http://statistics.data.gov.uk/id/local-authority/32UC,Climate Change and Environment,Professional Fees,17/01/2023,30017800,"74,891.12 ",Osborne Energy Limited
East Lindsey District Council,http://statistics.data.gov.uk/id/local-authority/32UC,Climate Change and Environment,Professional Fees,12/01/2023,30017997,795.77 ,GRS Electrical Services Ltd
East Lindsey District Council,http://statistics.data.gov.uk/id/local-authority/32UC,Climate Change and Environment,Professional Fees,26/01/2023,30018214,"28,493.91 ",Breyer Group PLC
East Lindsey District Council,http://statistics.data.gov.uk/id/local-authority/32UC,Climate Change and Environment,Professional Fees,24/01/2023,30018343,"2,795.40 ",GRS Electrical Services Ltd
East Lindsey District Council,http://statistics.data.gov.uk/id/local-authority/32UC,Climate Change and Environment,Professional Fees,26/01/2023,30018344,"74,891.12 ",Osborne Energy Limited
East Lindsey District Council,http://statistics.data.gov.uk/id/local-authority/32UC,Climate Change and Environment,Professional Fees,03/02/2023,30018366,"24,040.31 ",Breyer Group PLC
East Lindsey District Council,http://statistics.data.gov.uk/id/local-authority/32UC,Climate Change and Environment,Professional Fees,31/01/2023,30018665,"40,765.62 ",Everwarm Ltd
East Lindsey District Council,http://statistics.data.gov.uk/id/local-authority/32UC,Climate Change and Environment,Professional Fees,31/01/2023,30018666,"2,682.68 ",GRS Electrical Services Ltd
East Lindsey District Council,http://statistics.data.gov.uk/id/local-authority/32UC,Climate Change and Environment,Professional Fees,31/01/2023,30018667,"1,313.36 ",GRS Electrical Services Ltd
East Lindsey District Council,http://statistics.data.gov.uk/id/local-authority/32UC,Development Control,Advertising - Legal And Public,07/02/2023,30018282,362.88 ,Reach Plc Publishing Ltd
East Lindsey District Council,http://statistics.data.gov.uk/id/local-authority/32UC,Development Control,Employee Professional Subscriptions (Non-Payroll),12/01/2023,30017454,331.00 ,RTPI
East Lindsey District Council,http://statistics.data.gov.uk/id/local-authority/32UC,Development Control,Employee Professional Subscriptions (Non-Payroll),12/01/2023,30017455,331.00 ,RTPI
East Lindsey District Council,http://statistics.data.gov.uk/id/local-authority/32UC,Development Control,Planning Application Fees,10/01/2023,30017871,462.00 ,Portal Plan Quest Ltd
East Lindsey District Council,http://statistics.data.gov.uk/id/local-authority/32UC,Development Control,Professional and Contractors Fees,05/01/2023,30017562,750.00 ,Delta-Simons Environmental Consultants
East Lindsey District Council,http://statistics.data.gov.uk/id/local-authority/32UC,Development Control,Professional and Contractors Fees,31/01/2023,30017984,"2,505.00 ","""Personal Information Redacted"""
East Lindsey District Council,http://statistics.data.gov.uk/id/local-authority/32UC,East Lindsey Balance Sheet,ST Debtors HB Overpayments Control Account,19/01/2023,30018050,251.31 ,"""Personal Information Redacted"""
East Lindsey District Council,http://statistics.data.gov.uk/id/local-authority/32UC,Enforcement,Agency Staff,05/01/2023,30017031,"1,757.50 ",G2 Recruitment Solutions
East Lindsey District Council,http://statistics.data.gov.uk/id/local-authority/32UC,Enforcement,Agency Staff,10/01/2023,30017247,"1,757.50 ",G2 Recruitment Solutions
East Lindsey District Council,http://statistics.data.gov.uk/id/local-authority/32UC,Enforcement,Course Fees,10/01/2023,30017842,750.00 ,Ivy Legal
East Lindsey District Council,http://statistics.data.gov.uk/id/local-authority/32UC,Enforcement,Staff Recruitment,24/01/2023,30017803,"1,757.50 ",G2 Recruitment Solutions
East Lindsey District Council,http://statistics.data.gov.uk/id/local-authority/32UC,Enforcement,Staff Recruitment,24/01/2023,30017804,"1,211.25 ",G2 Recruitment Solutions
East Lindsey District Council,http://statistics.data.gov.uk/id/local-authority/32UC,Enforcement,Staff Recruitment,31/01/2023,30017865,807.50 ,G2 Recruitment Solutions
East Lindsey District Council,http://statistics.data.gov.uk/id/local-authority/32UC,Enforcement,Staff Recruitment,07/02/2023,30018160,"1,472.50 ",G2 Recruitment Solutions
East Lindsey District Council,http://statistics.data.gov.uk/id/local-authority/32UC,Enforcement,Staff Recruitment,07/02/2023,30018161,"1,757.50 ",G2 Recruitment Solutions
East Lindsey District Council,http://statistics.data.gov.uk/id/local-authority/32UC,Environmental Health,Furniture and Equipment,17/01/2023,30017610,436.91 ,Rapiscan Systems Limited
East Lindsey District Council,http://statistics.data.gov.uk/id/local-authority/32UC,Environmental Health,Other agencies,26/01/2023,30018513,"5,700.00 ",Kingdom Local Authority Support
East Lindsey District Council,http://statistics.data.gov.uk/id/local-authority/32UC,Environmental Health,Other agencies,31/01/2023,30018541,"11,685.95 ",Kingdom Local Authority Support
East Lindsey District Council,http://statistics.data.gov.uk/id/local-authority/32UC,Environmental Health,Other agencies,31/01/2023,30018542,"10,640.00 ",Kingdom Local Authority Support
East Lindsey District Council,http://statistics.data.gov.uk/id/local-authority/32UC,Environmental Health,Other agencies,31/01/2023,30018543,"10,212.50 ",Kingdom Local Authority Support
East Lindsey District Council,http://statistics.data.gov.uk/id/local-authority/32UC,Environmental Health,Professional and Contractors Fees,12/01/2023,30017293,"1,040.00 ",Osborne Richardson Ltd
East Lindsey District Council,http://statistics.data.gov.uk/id/local-authority/32UC,Environmental Health,Professional and Contractors Fees,17/01/2023,30017635,760.48 ,G2 Recruitment Solutions
East Lindsey District Council,http://statistics.data.gov.uk/id/local-authority/32UC,Environmental Health,Professional and Contractors Fees,17/01/2023,30017636,255.00 ,G2 Recruitment Solutions
East Lindsey District Council,http://statistics.data.gov.uk/id/local-authority/32UC,Environmental Health,Professional and Contractors Fees,17/01/2023,30017637,729.13 ,G2 Recruitment Solutions
East Lindsey District Council,http://statistics.data.gov.uk/id/local-authority/32UC,Environmental Health,Professional and Contractors Fees,17/01/2023,30017638,"1,275.00 ",G2 Recruitment Solutions
East Lindsey District Council,http://statistics.data.gov.uk/id/local-authority/32UC,Environmental Health,Professional and Contractors Fees,10/01/2023,30017813,"14,500.00 ",Pell Plant Hire Ltd
East Lindsey District Council,http://statistics.data.gov.uk/id/local-authority/32UC,Environmental Health,Professional and Contractors Fees,24/01/2023,30017825,644.11 ,ALS Environmental Ltd
East Lindsey District Council,http://statistics.data.gov.uk/id/local-authority/32UC,Environmental Health,Professional and Contractors Fees,24/01/2023,30017827,644.11 ,ALS Environmental Ltd
East Lindsey District Council,http://statistics.data.gov.uk/id/local-authority/32UC,Environmental Health,Professional and Contractors Fees,10/01/2023,30017836,720.00 ,Osborne Richardson Ltd
East Lindsey District Council,http://statistics.data.gov.uk/id/local-authority/32UC,Environmental Health,Professional and Contractors Fees,31/01/2023,30017985,"1,453.03 ",G2 Recruitment Solutions
East Lindsey District Council,http://statistics.data.gov.uk/id/local-authority/32UC,Environmental Health,Professional and Contractors Fees,31/01/2023,30017986,"1,488.18 ",G2 Recruitment Solutions
East Lindsey District Council,http://statistics.data.gov.uk/id/local-authority/32UC,Environmental Health,Professional and Contractors Fees,31/01/2023,30017987,"1,275.00 ",G2 Recruitment Solutions
East Lindsey District Council,http://statistics.data.gov.uk/id/local-authority/32UC,Environmental Health,Professional and Contractors Fees,12/01/2023,30017989,"1,275.00 ",G2 Recruitment Solutions
East Lindsey District Council,http://statistics.data.gov.uk/id/local-authority/32UC,Environmental Health,Professional and Contractors Fees,12/01/2023,30017990,"1,230.00 ",G2 Recruitment Solutions
East Lindsey District Council,http://statistics.data.gov.uk/id/local-authority/32UC,Environmental Health,Professional and Contractors Fees,12/01/2023,30017992,230.00 ,G2 Recruitment Solutions
East Lindsey District Council,http://statistics.data.gov.uk/id/local-authority/32UC,Environmental Health,Professional and Contractors Fees,17/01/2023,30018054,600.00 ,Pest Lincs Ltd
East Lindsey District Council,http://statistics.data.gov.uk/id/local-authority/32UC,Environmental Health,Professional and Contractors Fees,26/01/2023,30018136,"1,023.93 ",Ark Givendale Ltd
East Lindsey District Council,http://statistics.data.gov.uk/id/local-authority/32UC,Environmental Health,Professional and Contractors Fees,07/02/2023,30018223,760.48 ,G2 Recruitment Solutions
East Lindsey District Council,http://statistics.data.gov.uk/id/local-authority/32UC,Environmental Health,Professional and Contractors Fees,07/02/2023,30018225,779.95 ,G2 Recruitment Solutions
East Lindsey District Council,http://statistics.data.gov.uk/id/local-authority/32UC,Environmental Health,Professional and Contractors Fees,07/02/2023,30018226,637.50 ,G2 Recruitment Solutions
East Lindsey District Council,http://statistics.data.gov.uk/id/local-authority/32UC,Environmental Health,Professional and Contractors Fees,26/01/2023,30018480,800.00 ,Pest Lincs Ltd
East Lindsey District Council,http://statistics.data.gov.uk/id/local-authority/32UC,Environmental Health,Professional and Contractors Fees,26/01/2023,30018544,580.00 ,Waste Away Clearance Service
East Lindsey District Council,http://statistics.data.gov.uk/id/local-authority/32UC,Growth Relationships & Growth Promotions,Grants and Contributions - Where a Service is Received,17/01/2023,30018170,"7,491.00 ",Heritage Trust of Lincolnshire Ltd
East Lindsey District Council,http://statistics.data.gov.uk/id/local-authority/32UC,Growth Relationships & Growth Promotions,Grants and Contributions - Where a Service is Received,19/01/2023,30018173,"250,000.00 ",Heritage Trust of Lincolnshire Ltd
East Lindsey District Council,http://statistics.data.gov.uk/id/local-authority/32UC,Growth Relationships & Growth Promotions,Grants and Contributions - Where a Service is Received,17/01/2023,30018206,"2,129.17 ",Heritage Trust of Lincolnshire Ltd
East Lindsey District Council,http://statistics.data.gov.uk/id/local-authority/32UC,Growth Relationships & Growth Promotions,Other Communication Costs,10/01/2023,30017808,350.00 ,Root Studio
East Lindsey District Council,http://statistics.data.gov.uk/id/local-authority/32UC,Growth Relationships & Growth Promotions,Other Communication Costs,10/01/2023,30017812,595.00 ,Root Studio
East Lindsey District Council,http://statistics.data.gov.uk/id/local-authority/32UC,Growth Relationships & Growth Promotions,Other Communication Costs,10/01/2023,30017819,"1,000.00 ",Distract Ltd
East Lindsey District Council,http://statistics.data.gov.uk/id/local-authority/32UC,Growth Relationships & Growth Promotions,Other Miscellaneous Expenses,12/01/2023,30017283,245.66 ,Gelder Ltd
East Lindsey District Council,http://statistics.data.gov.uk/id/local-authority/32UC,Growth Relationships & Growth Promotions,Other Miscellaneous Expenses,10/01/2023,30017873,700.00 ,"""Personal Information Redacted"""
East Lindsey District Council,http://statistics.data.gov.uk/id/local-authority/32UC,Growth Relationships & Growth Promotions,Professional and Contractors Fees,12/01/2023,30017603,"1,995.00 ",Vere Bros (Contractors) Ltd
East Lindsey District Council,http://statistics.data.gov.uk/id/local-authority/32UC,Growth Relationships & Growth Promotions,Professional and Contractors Fees,10/01/2023,30017823,"2,650.00 ",Rose Regeneration Ltd
East Lindsey District Council,http://statistics.data.gov.uk/id/local-authority/32UC,Growth Relationships & Growth Promotions,Professional and Contractors Fees,24/01/2023,30018269,875.00 ,Rose Regeneration Ltd
East Lindsey District Council,http://statistics.data.gov.uk/id/local-authority/32UC,Growth Relationships & Growth Promotions,Professional and Contractors Fees,26/01/2023,30018503,510.92 ,GRS Signs Ltd
East Lindsey District Council,http://statistics.data.gov.uk/id/local-authority/32UC,Growth Relationships & Growth Promotions,Professional and Contractors Fees,26/01/2023,30018506,"12,101.91 ",The Sessions House CIC
East Lindsey District Council,http://statistics.data.gov.uk/id/local-authority/32UC,Growth Relationships & Growth Promotions,Professional Fees,17/01/2023,30018133,"1,401.15 ",The Engaging People Company
East Lindsey District Council,http://statistics.data.gov.uk/id/local-authority/32UC,Information Technology,Computer Hardware Maintenance,31/01/2023,30018345,"5,497.56 ",Public Sector Partnership Services Ltd
East Lindsey District Council,http://statistics.data.gov.uk/id/local-authority/32UC,Information Technology,Computer Hardware Purchase,03/02/2023,30018068,982.67 ,Probrand Limited
East Lindsey District Council,http://statistics.data.gov.uk/id/local-authority/32UC,Information Technology,Computer Hardware Purchase,03/02/2023,30018069,445.51 ,Probrand Limited
East Lindsey District Council,http://statistics.data.gov.uk/id/local-authority/32UC,Information Technology,Computer Hardware Purchase,31/01/2023,30018346,"1,655.55 ",Public Sector Partnership Services Ltd
East Lindsey District Council,http://statistics.data.gov.uk/id/local-authority/32UC,Information Technology,Computer Software Licence Costs,05/01/2023,30017242,"9,688.03 ",Idox
East Lindsey District Council,http://statistics.data.gov.uk/id/local-authority/32UC,Information Technology,Computer Software Licence Costs,31/08/2022,30017614,268.00 ,MRI Housing Partners
East Lindsey District Council,http://statistics.data.gov.uk/id/local-authority/32UC,Information Technology,Computer Software Licence Costs,27/09/2022,30017615,"12,024.10 ",MRI Housing Partners
East Lindsey District Council,http://statistics.data.gov.uk/id/local-authority/32UC,Information Technology,Computer Software Licence Costs,09/12/2022,30017617,"16,000.00 ",MRI Housing Partners
East Lindsey District Council,http://statistics.data.gov.uk/id/local-authority/32UC,Information Technology,Computer Software Licence Costs,31/01/2023,30017867,"14,620.32 ",Phoenix Software Ltd
East Lindsey District Council,http://statistics.data.gov.uk/id/local-authority/32UC,Information Technology,Computer Software Licence Costs,31/01/2023,30017869,"22,544.17 ",Phoenix Software Ltd
East Lindsey District Council,http://statistics.data.gov.uk/id/local-authority/32UC,Information Technology,Computer Software Licence Costs,12/01/2023,30017966,"16,000.00 ",Housing Partners Limited
East Lindsey District Council,http://statistics.data.gov.uk/id/local-authority/32UC,Information Technology,Computer Software Licence Costs,31/01/2023,30018351,268.00 ,Housing Partners Limited
East Lindsey District Council,http://statistics.data.gov.uk/id/local-authority/32UC,Information Technology,Computer Software Licence Costs,31/01/2023,30018352,"12,024.10 ",Housing Partners Limited
East Lindsey District Council,http://statistics.data.gov.uk/id/local-authority/32UC,Information Technology,Computer Software Licence Costs,21/01/2023,30018396,"50,000.00 ",The Technology Forge
East Lindsey District Council,http://statistics.data.gov.uk/id/local-authority/32UC,Information Technology,Computer Software Licence Costs,19/01/2023,30018411,"1,825.18 ",Next Generation Mobility Gmbh and Co t/a Fleetster
East Lindsey District Council,http://statistics.data.gov.uk/id/local-authority/32UC,Information Technology,Computer Software Licence Costs,31/01/2023,30018577,250.00 ,Public Sector Partnership Services Ltd
East Lindsey District Council,http://statistics.data.gov.uk/id/local-authority/32UC,Information Technology,Computer Software Licence Costs,31/01/2023,30018578,500.00 ,Public Sector Partnership Services Ltd
East Lindsey District Council,http://statistics.data.gov.uk/id/local-authority/32UC,Information Technology,Computer Software Purchase,03/02/2023,30018132,"31,063.45 ",Pure Audio Visual Ltd
East Lindsey District Council,http://statistics.data.gov.uk/id/local-authority/32UC,Information Technology,Mobile Phones,17/01/2023,30017994,"8,564.86 ",Public Sector Partnership Services Ltd
East Lindsey District Council,http://statistics.data.gov.uk/id/local-authority/32UC,Information Technology,Mobile Phones,17/01/2023,30018021,"8,564.86 ",Public Sector Partnership Services Ltd
East Lindsey District Council,http://statistics.data.gov.uk/id/local-authority/32UC,Information Technology,Mobile Phones,17/01/2023,30018024,"8,564.86 ",Public Sector Partnership Services Ltd
East Lindsey District Council,http://statistics.data.gov.uk/id/local-authority/32UC,Information Technology,Mobile Phones,17/01/2023,30018025,"8,564.86 ",Public Sector Partnership Services Ltd
East Lindsey District Council,http://statistics.data.gov.uk/id/local-authority/32UC,Information Technology,Mobile Phones,17/01/2023,30018026,"8,564.86 ",Public Sector Partnership Services Ltd
East Lindsey District Council,http://statistics.data.gov.uk/id/local-authority/32UC,Information Technology,Mobile Phones,17/01/2023,30018027,"8,564.86 ",Public Sector Partnership Services Ltd
East Lindsey District Council,http://statistics.data.gov.uk/id/local-authority/32UC,Information Technology,Mobile Phones,17/01/2023,30018028,"8,564.86 ",Public Sector Partnership Services Ltd
East Lindsey District Council,http://statistics.data.gov.uk/id/local-authority/32UC,Information Technology,Mobile Phones,17/01/2023,30018029,"8,564.86 ",Public Sector Partnership Services Ltd
East Lindsey District Council,http://statistics.data.gov.uk/id/local-authority/32UC,Information Technology,Mobile Phones,31/01/2023,30018408,"8,416.03 ",Public Sector Partnership Services Ltd
East Lindsey District Council,http://statistics.data.gov.uk/id/local-authority/32UC,Information Technology,Mobile Phones,26/01/2023,30018445,468.25 ,Vodafone Ltd Corporate
East Lindsey District Council,http://statistics.data.gov.uk/id/local-authority/32UC,Information Technology,Other Miscellaneous Expenses,10/01/2023,30017714,"5,387.00 ",Covenco Recovery Services Ltd
East Lindsey District Council,http://statistics.data.gov.uk/id/local-authority/32UC,Invest East Lindsey,Professional Fees,17/01/2023,30018137,"1,848.75 ",John Peberdy Partnership
East Lindsey District Council,http://statistics.data.gov.uk/id/local-authority/32UC,Invest East Lindsey,"Purchase of Plant, Machinery and Equipment",17/01/2023,30017577,360.00 ,Senator Group
East Lindsey District Council,http://statistics.data.gov.uk/id/local-authority/32UC,Invest East Lindsey,"Purchase of Plant, Machinery and Equipment",17/01/2023,30017578,"1,872.25 ",Senator Group
East Lindsey District Council,http://statistics.data.gov.uk/id/local-authority/32UC,Invest East Lindsey,"Purchase of Plant, Machinery and Equipment",05/01/2023,30017663,"8,192.64 ",Senator Group
East Lindsey District Council,http://statistics.data.gov.uk/id/local-authority/32UC,Invest East Lindsey,Purchase of Playground Equipment,12/01/2023,30017664,"22,252.55 ",Senator Group
East Lindsey District Council,http://statistics.data.gov.uk/id/local-authority/32UC,Neighbourhoods,Agency Staff,12/01/2023,30017877,"4,164.66 ",The Workshop (Wisbech) Ltd
East Lindsey District Council,http://statistics.data.gov.uk/id/local-authority/32UC,Neighbourhoods,Agency Staff,19/01/2023,30018222,"4,215.05 ",The Workshop (Wisbech) Ltd
East Lindsey District Council,http://statistics.data.gov.uk/id/local-authority/32UC,Neighbourhoods,Agency Staff,19/01/2023,30018240,"4,953.58 ",The Workshop (Wisbech) Ltd
East Lindsey District Council,http://statistics.data.gov.uk/id/local-authority/32UC,Neighbourhoods,Agency Staff,26/01/2023,30018484,"5,250.06 ",The Workshop (Wisbech) Ltd
East Lindsey District Council,http://statistics.data.gov.uk/id/local-authority/32UC,Neighbourhoods,Buildings Maintenance - Programmed,10/01/2023,30017644,"4,200.00 ",Pell Plant Hire Ltd
East Lindsey District Council,http://statistics.data.gov.uk/id/local-authority/32UC,Neighbourhoods,Buildings Maintenance - Responsive,12/01/2023,30017572,"109,898.94 ",Gelder Ltd
East Lindsey District Council,http://statistics.data.gov.uk/id/local-authority/32UC,Neighbourhoods,Clothing Uniforms And Laundry,31/01/2023,30017875,437.60 ,SMI Int Group
East Lindsey District Council,http://statistics.data.gov.uk/id/local-authority/32UC,Neighbourhoods,Clothing Uniforms And Laundry,07/02/2023,30018249,235.20 ,SMI Int Group
East Lindsey District Council,http://statistics.data.gov.uk/id/local-authority/32UC,Neighbourhoods,Grounds Maintenance Contract (External),24/01/2023,30018220,"12,105.09 ",Glendale Grounds Management Limited
East Lindsey District Council,http://statistics.data.gov.uk/id/local-authority/32UC,Neighbourhoods,Maintenance,31/01/2023,30017576,944.09 ,Chandlers (Farm Equipment) Ltd
East Lindsey District Council,http://statistics.data.gov.uk/id/local-authority/32UC,Neighbourhoods,Materials and Consumables,10/01/2023,30017816,221.00 ,Eastern Shires Purchasing Organisation
East Lindsey District Council,http://statistics.data.gov.uk/id/local-authority/32UC,Neighbourhoods,Materials and Consumables,12/01/2023,30017962,216.36 ,Charles Hill Ltd
East Lindsey District Council,http://statistics.data.gov.uk/id/local-authority/32UC,Neighbourhoods,Materials and Consumables,12/01/2023,30017968,482.37 ,Arco Ltd
East Lindsey District Council,http://statistics.data.gov.uk/id/local-authority/32UC,Neighbourhoods,Materials and Consumables,03/02/2023,30018051,323.78 ,Landscape Supply Company
East Lindsey District Council,http://statistics.data.gov.uk/id/local-authority/32UC,Neighbourhoods,Professional and Contractors Fees,05/01/2023,30017623,280.00 ,H Pawson and Son
East Lindsey District Council,http://statistics.data.gov.uk/id/local-authority/32UC,Neighbourhoods,Professional and Contractors Fees,26/01/2023,30017627,457.92 ,Sid Dennis and Sons Ltd
East Lindsey District Council,http://statistics.data.gov.uk/id/local-authority/32UC,Neighbourhoods,Professional and Contractors Fees,12/01/2023,30017787,"5,985.00 ",Sandilands Services
East Lindsey District Council,http://statistics.data.gov.uk/id/local-authority/32UC,Neighbourhoods,Professional and Contractors Fees,26/01/2023,30018275,467.92 ,Sid Dennis and Sons Ltd
East Lindsey District Council,http://statistics.data.gov.uk/id/local-authority/32UC,Neighbourhoods,Professional and Contractors Fees,26/01/2023,30018277,457.92 ,Sid Dennis and Sons Ltd
East Lindsey District Council,http://statistics.data.gov.uk/id/local-authority/32UC,Neighbourhoods,Professional and Contractors Fees,26/01/2023,30018278,461.92 ,Sid Dennis and Sons Ltd
East Lindsey District Council,http://statistics.data.gov.uk/id/local-authority/32UC,Neighbourhoods,Professional and Contractors Fees,26/01/2023,30018482,710.45 ,ELAS Occupational Health Ltd
East Lindsey District Council,http://statistics.data.gov.uk/id/local-authority/32UC,Neighbourhoods,Professional and Contractors Fees,26/01/2023,30018485,468.80 ,Greenaway
East Lindsey District Council,http://statistics.data.gov.uk/id/local-authority/32UC,Neighbourhoods,Professional and Contractors Fees,26/01/2023,30018486,"2,130.00 ",Rookery Kennels
East Lindsey District Council,http://statistics.data.gov.uk/id/local-authority/32UC,Neighbourhoods,Vehicle Recovery,19/01/2023,30017596,435.00 ,Peter & David Cosby
East Lindsey District Council,http://statistics.data.gov.uk/id/local-authority/32UC,Neighbourhoods,Vehicle Recovery,26/01/2023,30018523,285.00 ,Peter & David Cosby
East Lindsey District Council,http://statistics.data.gov.uk/id/local-authority/32UC,Neighbourhoods,Water and Sewerage Charges,05/01/2023,30017672,479.90 ,Wave Anglian Water Business National Ltd
East Lindsey District Council,http://statistics.data.gov.uk/id/local-authority/32UC,Neighbourhoods,Water and Sewerage Charges,17/01/2023,30018009,"1,690.10 ",Wave Anglian Water Business National Ltd
East Lindsey District Council,http://statistics.data.gov.uk/id/local-authority/32UC,Neighbourhoods,Water and Sewerage Charges,26/01/2023,30018296,"1,746.90 ",Wave Anglian Water Business National Ltd
East Lindsey District Council,http://statistics.data.gov.uk/id/local-authority/32UC,"Performance, Governance & Commissioning",Agency Staff,05/01/2023,30017601,"1,200.49 ",James Andrews Recruitment Solutions
East Lindsey District Council,http://statistics.data.gov.uk/id/local-authority/32UC,"Performance, Governance & Commissioning",Agency Staff,05/01/2023,30017602,"1,118.26 ",James Andrews Recruitment Solutions
East Lindsey District Council,http://statistics.data.gov.uk/id/local-authority/32UC,"Performance, Governance & Commissioning",Agency Staff,12/01/2023,30017852,263.12 ,James Andrews Recruitment Solutions
East Lindsey District Council,http://statistics.data.gov.uk/id/local-authority/32UC,"Performance, Governance & Commissioning",Agency Staff,12/01/2023,30017853,411.13 ,James Andrews Recruitment Solutions
East Lindsey District Council,http://statistics.data.gov.uk/id/local-authority/32UC,"Performance, Governance & Commissioning",Agency Staff,24/01/2023,30018237,230.23 ,James Andrews Recruitment Solutions
East Lindsey District Council,http://statistics.data.gov.uk/id/local-authority/32UC,"Performance, Governance & Commissioning",Agency Staff,19/01/2023,30018259,568.70 ,Hays Specialist Recruitment Limited
East Lindsey District Council,http://statistics.data.gov.uk/id/local-authority/32UC,"Performance, Governance & Commissioning",Agency Staff,19/01/2023,30018260,660.42 ,Hays Specialist Recruitment Limited
East Lindsey District Council,http://statistics.data.gov.uk/id/local-authority/32UC,"Performance, Governance & Commissioning",Agency Staff,19/01/2023,30018261,758.26 ,Hays Specialist Recruitment Limited
East Lindsey District Council,http://statistics.data.gov.uk/id/local-authority/32UC,"Performance, Governance & Commissioning",Agency Staff,24/01/2023,30018332,937.37 ,James Andrews Recruitment Solutions
East Lindsey District Council,http://statistics.data.gov.uk/id/local-authority/32UC,"Performance, Governance & Commissioning",Agency Staff,24/01/2023,30018333,776.61 ,Hays Specialist Recruitment Limited
East Lindsey District Council,http://statistics.data.gov.uk/id/local-authority/32UC,"Performance, Governance & Commissioning",Agency Staff,31/01/2023,30018498,937.37 ,James Andrews Recruitment Solutions
East Lindsey District Council,http://statistics.data.gov.uk/id/local-authority/32UC,"Performance, Governance & Commissioning",Agency Staff,31/01/2023,30018579,739.93 ,Hays Specialist Recruitment Limited
East Lindsey District Council,http://statistics.data.gov.uk/id/local-authority/32UC,"Performance, Governance & Commissioning",External Printing and Design Costs,05/01/2023,30017640,"2,028.00 ",Civica Election Services
East Lindsey District Council,http://statistics.data.gov.uk/id/local-authority/32UC,"Performance, Governance & Commissioning",External Printing and Design Costs,10/01/2023,30017872,"1,316.47 ",Civica Election Services
East Lindsey District Council,http://statistics.data.gov.uk/id/local-authority/32UC,"Performance, Governance & Commissioning",External Printing and Design Costs,24/01/2023,30017963,708.42 ,Civica Election Services
East Lindsey District Council,http://statistics.data.gov.uk/id/local-authority/32UC,"Performance, Governance & Commissioning",External Printing and Design Costs,17/01/2023,30018215,756.65 ,Civica Election Services
East Lindsey District Council,http://statistics.data.gov.uk/id/local-authority/32UC,"Performance, Governance & Commissioning",Furniture and Equipment,26/01/2023,30018514,758.79 ,Quadient Finance UK Ltd
East Lindsey District Council,http://statistics.data.gov.uk/id/local-authority/32UC,"Performance, Governance & Commissioning",Grants and Contributions to Outside Bodies - No Service Received,12/01/2023,30017996,408.00 ,Louth Croquet Club
East Lindsey District Council,http://statistics.data.gov.uk/id/local-authority/32UC,"Performance, Governance & Commissioning",Grants and Contributions to Outside Bodies - No Service Received,12/01/2023,30018002,700.00 ,Hogsthorpe Parish Council
East Lindsey District Council,http://statistics.data.gov.uk/id/local-authority/32UC,"Performance, Governance & Commissioning",Grants and Contributions to Outside Bodies - No Service Received,12/01/2023,30018003,300.00 ,Royal Kurling Club
East Lindsey District Council,http://statistics.data.gov.uk/id/local-authority/32UC,"Performance, Governance & Commissioning",Grants and Contributions to Outside Bodies - No Service Received,12/01/2023,30018004,300.00 ,Addlethorpe Parish Council
East Lindsey District Council,http://statistics.data.gov.uk/id/local-authority/32UC,"Performance, Governance & Commissioning",Grants and Contributions to Outside Bodies - No Service Received,12/01/2023,30018005,500.00 ,The Stanhope Hall
East Lindsey District Council,http://statistics.data.gov.uk/id/local-authority/32UC,"Performance, Governance & Commissioning",Grants and Contributions to Outside Bodies - No Service Received,24/01/2023,30018266,300.00 ,Ingoldmells Management Team
East Lindsey District Council,http://statistics.data.gov.uk/id/local-authority/32UC,"Performance, Governance & Commissioning",Grants and Contributions to Outside Bodies - No Service Received,24/01/2023,30018292,500.00 ,Friskney Village Hall
East Lindsey District Council,http://statistics.data.gov.uk/id/local-authority/32UC,"Performance, Governance & Commissioning",Grants and Contributions to Outside Bodies - No Service Received,26/01/2023,30018511,280.00 ,CATS DIVSS
East Lindsey District Council,http://statistics.data.gov.uk/id/local-authority/32UC,"Performance, Governance & Commissioning",Grants and Contributions to Outside Bodies - No Service Received,31/01/2023,30018527,300.00 ,Thornton Le Fen Parish Council
East Lindsey District Council,http://statistics.data.gov.uk/id/local-authority/32UC,"Performance, Governance & Commissioning",Grants and Contributions to Outside Bodies - No Service Received,31/01/2023,30018531,350.00 ,Louth Navigation Trust
East Lindsey District Council,http://statistics.data.gov.uk/id/local-authority/32UC,"Performance, Governance & Commissioning",Other Miscellaneous Expenses,26/01/2023,30018508,"3,100.00 ",Serjeants Inn
East Lindsey District Council,http://statistics.data.gov.uk/id/local-authority/32UC,"Performance, Governance & Commissioning",Postages,05/01/2023,30017640,"1,375.00 ",Civica Election Services
East Lindsey District Council,http://statistics.data.gov.uk/id/local-authority/32UC,"Performance, Governance & Commissioning",Postages,10/01/2023,30017872,"1,156.25 ",Civica Election Services
East Lindsey District Council,http://statistics.data.gov.uk/id/local-authority/32UC,"Performance, Governance & Commissioning",Postages,24/01/2023,30017963,"1,513.51 ",Civica Election Services
East Lindsey District Council,http://statistics.data.gov.uk/id/local-authority/32UC,"Performance, Governance & Commissioning",Postages,17/01/2023,30018215,665.25 ,Civica Election Services
East Lindsey District Council,http://statistics.data.gov.uk/id/local-authority/32UC,"Performance, Governance & Commissioning",Subscriptions to Organisations and Other Bodies,10/01/2023,30017801,285.00 ,Association of Electoral Administrators
East Lindsey District Council,http://statistics.data.gov.uk/id/local-authority/32UC,Planning Policy,Professional and Contractors Fees,24/01/2023,30018279,"4,666.25 ",Create Consulting Engineers Ltd
East Lindsey District Council,http://statistics.data.gov.uk/id/local-authority/32UC,Planning Policy,Professional and Contractors Fees,24/01/2023,30018364,"20,000.00 ",University of Lincoln
East Lindsey District Council,http://statistics.data.gov.uk/id/local-authority/32UC,Planning Policy,Subscriptions to Organisations and Other Bodies,17/01/2023,30017645,330.00 ,South Tyneside Council
East Lindsey District Council,http://statistics.data.gov.uk/id/local-authority/32UC,Property,Buildings Maintenance - Programmed,10/01/2023,30017655,"3,200.00 ",Bates Environmental Ltd
East Lindsey District Council,http://statistics.data.gov.uk/id/local-authority/32UC,Property,Buildings Maintenance - Programmed,10/01/2023,30017656,"2,300.00 ",Bates Environmental Ltd
East Lindsey District Council,http://statistics.data.gov.uk/id/local-authority/32UC,Property,Buildings Maintenance - Programmed,10/01/2023,30017678,561.15 ,TVF UK Limited
East Lindsey District Council,http://statistics.data.gov.uk/id/local-authority/32UC,Property,Buildings Maintenance - Programmed,10/01/2023,30017732,950.00 ,Safe Sound Security Systems Links Ltd
East Lindsey District Council,http://statistics.data.gov.uk/id/local-authority/32UC,Property,Buildings Maintenance - Programmed,17/01/2023,30018035,600.00 ,Aegis Technologies
East Lindsey District Council,http://statistics.data.gov.uk/id/local-authority/32UC,Property,Buildings Maintenance - Programmed,31/01/2023,30018313,"1,483.62 ",Avery Weigh-Tronix
East Lindsey District Council,http://statistics.data.gov.uk/id/local-authority/32UC,Property,Buildings Maintenance - Responsive,10/01/2023,30017570,500.00 ,Lincolnshire Roller Shutters
East Lindsey District Council,http://statistics.data.gov.uk/id/local-authority/32UC,Property,Buildings Maintenance - Responsive,10/01/2023,30017655,600.00 ,Bates Environmental Ltd
East Lindsey District Council,http://statistics.data.gov.uk/id/local-authority/32UC,Property,Buildings Maintenance - Responsive,10/01/2023,30017656,600.00 ,Bates Environmental Ltd
East Lindsey District Council,http://statistics.data.gov.uk/id/local-authority/32UC,Property,Buildings Maintenance - Responsive,31/01/2023,30017733,655.04 ,Aaron Services Ltd
East Lindsey District Council,http://statistics.data.gov.uk/id/local-authority/32UC,Property,Buildings Maintenance - Responsive,17/01/2023,30017978,250.00 ,Safecontrol Ltd
East Lindsey District Council,http://statistics.data.gov.uk/id/local-authority/32UC,Property,Buildings Maintenance - Responsive,31/01/2023,30018495,"98,619.14 ",Gelder Ltd
East Lindsey District Council,http://statistics.data.gov.uk/id/local-authority/32UC,Property,Cleaning Contract,10/01/2023,30017810,"1,079.00 ",Easy Clean Marshchapel Ltd
East Lindsey District Council,http://statistics.data.gov.uk/id/local-authority/32UC,Property,Cleaning Contract,10/01/2023,30017811,610.00 ,Easy Clean Marshchapel Ltd
East Lindsey District Council,http://statistics.data.gov.uk/id/local-authority/32UC,Property,Clothing Uniforms And Laundry,19/01/2023,30018263,211.14 ,Arco Ltd
East Lindsey District Council,http://statistics.data.gov.uk/id/local-authority/32UC,Property,Clothing Uniforms And Laundry,26/01/2023,30018490,248.28 ,Arco Ltd
East Lindsey District Council,http://statistics.data.gov.uk/id/local-authority/32UC,Property,Computer Hardware Maintenance,24/01/2023,30018274,"2,758.80 ",Paperwork
East Lindsey District Council,http://statistics.data.gov.uk/id/local-authority/32UC,Property,Electricity,10/01/2023,30017674,"1,146.50 ",Opus Energy Ltd
East Lindsey District Council,http://statistics.data.gov.uk/id/local-authority/32UC,Property,Electricity,31/01/2023,30018580,"49,762.63 ",Total Gas and Power Limited
East Lindsey District Council,http://statistics.data.gov.uk/id/local-authority/32UC,Property,Furniture and Equipment,12/01/2023,30017864,"1,015.00 ",S Campbell Electrical
East Lindsey District Council,http://statistics.data.gov.uk/id/local-authority/32UC,Property,Gas,10/01/2023,30017660,291.67 ,Opus Energy Ltd
East Lindsey District Council,http://statistics.data.gov.uk/id/local-authority/32UC,Property,Legal Fees,17/01/2023,30017271,"3,000.00 ",Squire Patton Boggs UK LLP
East Lindsey District Council,http://statistics.data.gov.uk/id/local-authority/32UC,Property,Materials and Consumables,07/02/2023,30018270,827.60 ,The Caravan Warehouse
East Lindsey District Council,http://statistics.data.gov.uk/id/local-authority/32UC,Property,Other Communication Costs,10/01/2023,30017805,300.00 ,Digicube Ltd
East Lindsey District Council,http://statistics.data.gov.uk/id/local-authority/32UC,Property,Other Communication Costs,10/01/2023,30017809,300.00 ,Digicube Ltd
East Lindsey District Council,http://statistics.data.gov.uk/id/local-authority/32UC,Property,Other Communication Costs,19/01/2023,30018229,719.80 ,New Start Networks Ltd
East Lindsey District Council,http://statistics.data.gov.uk/id/local-authority/32UC,Property,Other Communication Costs,03/02/2023,30018489,330.53 ,New Start Networks Ltd
East Lindsey District Council,http://statistics.data.gov.uk/id/local-authority/32UC,Property,Other Miscellaneous Expenses,12/01/2023,30017824,"1,080.00 ",Lincolnshire County Council
East Lindsey District Council,http://statistics.data.gov.uk/id/local-authority/32UC,Property,Other Miscellaneous Expenses,31/01/2023,30018113,"10,493.15 ",Lambert Smith Hampton Group Ltd
East Lindsey District Council,http://statistics.data.gov.uk/id/local-authority/32UC,Property,Other Miscellaneous Expenses,31/01/2023,30018232,"1,643.84 ",Lambert Smith Hampton Group Ltd
East Lindsey District Council,http://statistics.data.gov.uk/id/local-authority/32UC,Property,Payments to Bodies in Respect of Income Collected,31/01/2023,30018038,"8,590.69 ",Tesco Stores Ltd
East Lindsey District Council,http://statistics.data.gov.uk/id/local-authority/32UC,Property,Payments to Bodies in Respect of Income Collected,31/01/2023,30018039,"7,179.36 ",Tesco Stores Ltd
East Lindsey District Council,http://statistics.data.gov.uk/id/local-authority/32UC,Property,Payments to Bodies in Respect of Income Collected,31/01/2023,30018040,"4,072.92 ",Tesco Stores Ltd
East Lindsey District Council,http://statistics.data.gov.uk/id/local-authority/32UC,Property,Payments to Bodies in Respect of Income Collected,31/01/2023,30018041,"8,715.83 ",Tesco Stores Ltd
East Lindsey District Council,http://statistics.data.gov.uk/id/local-authority/32UC,Property,Payments to Bodies in Respect of Income Collected,17/01/2023,30018042,"6,722.95 ",Tesco Stores Ltd
East Lindsey District Council,http://statistics.data.gov.uk/id/local-authority/32UC,Property,Professional and Contractors Fees,10/01/2023,30017192,525.64 ,Chipside Ltd
East Lindsey District Council,http://statistics.data.gov.uk/id/local-authority/32UC,Property,Professional and Contractors Fees,12/01/2023,30017193,217.95 ,Chipside Ltd
East Lindsey District Council,http://statistics.data.gov.uk/id/local-authority/32UC,Property,Professional and Contractors Fees,17/01/2023,30017621,635.40 ,Biffa Waste Services Ltd
East Lindsey District Council,http://statistics.data.gov.uk/id/local-authority/32UC,Property,Professional and Contractors Fees,17/01/2023,30017622,"7,360.00 ",Blachere Illumination UK Ltd
East Lindsey District Council,http://statistics.data.gov.uk/id/local-authority/32UC,Property,Professional and Contractors Fees,10/01/2023,30017866,"1,550.00 ",M.A.P Security Solutions Ltd
East Lindsey District Council,http://statistics.data.gov.uk/id/local-authority/32UC,Property,Professional and Contractors Fees,31/01/2023,30017874,"1,417.50 ",Vivid Resourcing
East Lindsey District Council,http://statistics.data.gov.uk/id/local-authority/32UC,Property,Professional and Contractors Fees,24/01/2023,30017953,570.84 ,Chipside Ltd
East Lindsey District Council,http://statistics.data.gov.uk/id/local-authority/32UC,Property,Professional and Contractors Fees,24/01/2023,30018066,"1,803.43 ",Kings Armoured Security Services Ltd
East Lindsey District Council,http://statistics.data.gov.uk/id/local-authority/32UC,Property,Professional and Contractors Fees,24/01/2023,30018094,"5,778.46 ",International Parking Systems UK Grp Ltd
East Lindsey District Council,http://statistics.data.gov.uk/id/local-authority/32UC,Property,Professional and Contractors Fees,17/01/2023,30018106,252.00 ,Biffa Waste Services Ltd
East Lindsey District Council,http://statistics.data.gov.uk/id/local-authority/32UC,Property,Professional and Contractors Fees,07/02/2023,30018219,540.00 ,Vivid Resourcing
East Lindsey District Council,http://statistics.data.gov.uk/id/local-authority/32UC,Property,Professional and Contractors Fees,03/02/2023,30018227,"5,833.33 ",Innes England
East Lindsey District Council,http://statistics.data.gov.uk/id/local-authority/32UC,Property,Professional and Contractors Fees,19/01/2023,30018273,211.45 ,International Parking Systems UK Grp Ltd
East Lindsey District Council,http://statistics.data.gov.uk/id/local-authority/32UC,Property,Professional and Contractors Fees,31/01/2023,30018487,803.32 ,Phs Group
East Lindsey District Council,http://statistics.data.gov.uk/id/local-authority/32UC,Property,Rent Payments,10/01/2023,30017619,"1,494.67 ",Lincolnshire County Council
East Lindsey District Council,http://statistics.data.gov.uk/id/local-authority/32UC,Property,Rent Payments,12/01/2023,30017846,"1,494.67 ",Lincolnshire County Council
East Lindsey District Council,http://statistics.data.gov.uk/id/local-authority/32UC,Property,Rent Payments,17/01/2023,30018109,"5,833.33 ",Innes England
East Lindsey District Council,http://statistics.data.gov.uk/id/local-authority/32UC,Property,Water and Sewerage Charges,10/01/2023,30017707,"7,472.56 ",Wave Anglian Water Business National Ltd
East Lindsey District Council,http://statistics.data.gov.uk/id/local-authority/32UC,Property,Water and Sewerage Charges,24/01/2023,30018308,"3,903.40 ",Wave Anglian Water Business National Ltd
East Lindsey District Council,http://statistics.data.gov.uk/id/local-authority/32UC,Property,Works to Buildings (Main Contractor),12/01/2023,30017728,"11,997.52 ",Rapid Racking Limited
East Lindsey District Council,http://statistics.data.gov.uk/id/local-authority/32UC,Property,Works to Buildings (Main Contractor),19/01/2023,30018250,"9,999.00 ",Foxhall Construction Ltd
East Lindsey District Council,http://statistics.data.gov.uk/id/local-authority/32UC,Public Protection,Grants and Contributions - Where a Service is Received,31/01/2023,30018536,"50,419.87 ",Boston Borough Council
East Lindsey District Council,http://statistics.data.gov.uk/id/local-authority/32UC,Public Protection,Professional and Contractors Fees,17/01/2023,30017807,"19,839.06 ",Videcom Security Limited
East Lindsey District Council,http://statistics.data.gov.uk/id/local-authority/32UC,Public Protection,Professional and Contractors Fees,26/01/2023,30018479,"2,880.00 ",Videcom Security Limited
East Lindsey District Council,http://statistics.data.gov.uk/id/local-authority/32UC,Public Protection,Subscriptions to Organisations and Other Bodies,17/01/2023,30017967,"24,828.04 ",Lincolnshire County Council
East Lindsey District Council,http://statistics.data.gov.uk/id/local-authority/32UC,Waste,Agency Staff,05/01/2023,30017631,"5,532.67 ",Red Rock Partnership Ltd
East Lindsey District Council,http://statistics.data.gov.uk/id/local-authority/32UC,Waste,Agency Staff,10/01/2023,30017760,732.00 ,Reilyn Ltd (DriverHire)
East Lindsey District Council,http://statistics.data.gov.uk/id/local-authority/32UC,Waste,Agency Staff,10/01/2023,30017761,"5,425.06 ",Red Rock Partnership Ltd
East Lindsey District Council,http://statistics.data.gov.uk/id/local-authority/32UC,Waste,Agency Staff,12/01/2023,30017964,"1,829.12 ",Red Rock Partnership Ltd
East Lindsey District Council,http://statistics.data.gov.uk/id/local-authority/32UC,Waste,Agency Staff,17/01/2023,30017988,585.60 ,Reilyn Ltd (DriverHire)
East Lindsey District Council,http://statistics.data.gov.uk/id/local-authority/32UC,Waste,Agency Staff,17/01/2023,30018217,"4,538.58 ",Red Rock Partnership Ltd
East Lindsey District Council,http://statistics.data.gov.uk/id/local-authority/32UC,Waste,Agency Staff,24/01/2023,30018363,732.00 ,Reilyn Ltd (DriverHire)
East Lindsey District Council,http://statistics.data.gov.uk/id/local-authority/32UC,Waste,Agency Staff,31/01/2023,30018556,"3,404.95 ",Red Rock Partnership Ltd
East Lindsey District Council,http://statistics.data.gov.uk/id/local-authority/32UC,Waste,Agency Staff,31/01/2023,30018568,732.00 ,Reilyn Ltd (DriverHire)
East Lindsey District Council,http://statistics.data.gov.uk/id/local-authority/32UC,Waste,Computer Hardware Maintenance,07/02/2023,30018224,316.95 ,Multidata
East Lindsey District Council,http://statistics.data.gov.uk/id/local-authority/32UC,Waste,External Printing and Design Costs,26/01/2023,30018365,"3,142.15 ",Systematic Print Management Ltd
East Lindsey District Council,http://statistics.data.gov.uk/id/local-authority/32UC,Waste,Fuel and Oil,12/01/2023,30018022,"4,645.20 ",Allstar Business Solutions Ltd
East Lindsey District Council,http://statistics.data.gov.uk/id/local-authority/32UC,Waste,Fuel and Oil,29/09/2022,30018199,"20,705.88 ",Pace Fuelcare
East Lindsey District Council,http://statistics.data.gov.uk/id/local-authority/32UC,Waste,Fuel and Oil,02/11/2022,30018200,"22,702.75 ",Pace Fuelcare
East Lindsey District Council,http://statistics.data.gov.uk/id/local-authority/32UC,Waste,Fuel and Oil,15/11/2022,30018201,"21,410.85 ",Pace Fuelcare
East Lindsey District Council,http://statistics.data.gov.uk/id/local-authority/32UC,Waste,Fuel and Oil,30/11/2022,30018202,"1,440.00 ",Pace Fuelcare
East Lindsey District Council,http://statistics.data.gov.uk/id/local-authority/32UC,Waste,Fuel and Oil,30/11/2022,30018203,"19,624.70 ",Pace Fuelcare
East Lindsey District Council,http://statistics.data.gov.uk/id/local-authority/32UC,Waste,Fuel and Oil,24/01/2023,30018356,"3,003.28 ",Allstar Business Solutions Ltd
East Lindsey District Council,http://statistics.data.gov.uk/id/local-authority/32UC,Waste,Fuel and Oil,23/01/2023,30018393,"22,735.88 ",Pace Fuelcare
East Lindsey District Council,http://statistics.data.gov.uk/id/local-authority/32UC,Waste,Fuel and Oil,23/01/2023,30018394,"22,198.05 ",Pace Fuelcare
East Lindsey District Council,http://statistics.data.gov.uk/id/local-authority/32UC,Waste,Fuel and Oil,23/01/2023,30018395,"2,150.00 ",Pace Fuelcare
East Lindsey District Council,http://statistics.data.gov.uk/id/local-authority/32UC,Waste,Fuel and Oil,03/01/2023,30018413,"16,807.69 ",Pace Fuelcare
East Lindsey District Council,http://statistics.data.gov.uk/id/local-authority/32UC,Waste,Materials and Consumables,12/01/2023,30017632,965.60 ,Daymark Ltd
East Lindsey District Council,http://statistics.data.gov.uk/id/local-authority/32UC,Waste,Materials and Consumables,03/02/2023,30018074,"16,711.50 ",ESE Ltd
East Lindsey District Council,http://statistics.data.gov.uk/id/local-authority/32UC,Waste,Materials and Consumables,03/02/2023,30018116,"15,613.00 ",ESE Ltd
East Lindsey District Council,http://statistics.data.gov.uk/id/local-authority/32UC,Waste,Other Communication Costs,24/01/2023,30017843,300.00 ,Reach Plc Publishing Ltd
East Lindsey District Council,http://statistics.data.gov.uk/id/local-authority/32UC,Waste,Premises Lease Payments (More than 12 months),10/01/2023,30017844,"5,312.50 ",Lincolnshire County Council
East Lindsey District Council,http://statistics.data.gov.uk/id/local-authority/32UC,Waste,Professional and Contractors Fees,19/01/2023,30017606,895.00 ,Fueltek Ltd
East Lindsey District Council,http://statistics.data.gov.uk/id/local-authority/32UC,Waste,Professional and Contractors Fees,10/01/2023,30017857,"5,778.47 ",GRS Signs Ltd
East Lindsey District Council,http://statistics.data.gov.uk/id/local-authority/32UC,Waste,Professional and Contractors Fees,12/01/2023,30018030,530.40 ,Licence Bureau
East Lindsey District Council,http://statistics.data.gov.uk/id/local-authority/32UC,Waste,Professional and Contractors Fees,31/01/2023,30018341,279.60 ,Phs Group
East Lindsey District Council,http://statistics.data.gov.uk/id/local-authority/32UC,Waste,Stationery,03/02/2023,30018656,342.00 ,Eastern Shires Purchasing Organisation
East Lindsey District Council,http://statistics.data.gov.uk/id/local-authority/32UC,Waste,Vehicle Recovery,19/01/2023,30017594,350.00 ,"""Personal Information Redacted"""
East Lindsey District Council,http://statistics.data.gov.uk/id/local-authority/32UC,Waste,Vehicle Recovery,17/01/2023,30017595,485.00 ,"""Personal Information Redacted"""
East Lindsey District Council,http://statistics.data.gov.uk/id/local-authority/32UC,Waste,Workshop Parts,17/01/2023,30017598,"1,320.37 ",Mcfarlands of Louth Ltd
East Lindsey District Council,http://statistics.data.gov.uk/id/local-authority/32UC,Waste,Workshop Parts,17/01/2023,30017607,310.00 ,Ford and Slater DAF (Lincoln Newark)
East Lindsey District Council,http://statistics.data.gov.uk/id/local-authority/32UC,Waste,Workshop Parts,17/01/2023,30017609,365.00 ,Ford and Slater DAF (Lincoln Newark)
East Lindsey District Council,http://statistics.data.gov.uk/id/local-authority/32UC,Waste,Workshop Parts,19/01/2023,30017612,534.36 ,Chandlers (Farm Equipment) Ltd
East Lindsey District Council,http://statistics.data.gov.uk/id/local-authority/32UC,Waste,Workshop Parts,17/01/2023,30017741,447.12 ,Partic Motor Spares Ltd
East Lindsey District Council,http://statistics.data.gov.uk/id/local-authority/32UC,Waste,Workshop Parts,12/01/2023,30017744,455.97 ,Dennis Eagle Ltd
East Lindsey District Council,http://statistics.data.gov.uk/id/local-authority/32UC,Waste,Workshop Parts,12/01/2023,30017746,254.24 ,Dennis Eagle Ltd
East Lindsey District Council,http://statistics.data.gov.uk/id/local-authority/32UC,Waste,Workshop Parts,10/01/2023,30017749,375.00 ,M J Windscreens Ltd
East Lindsey District Council,http://statistics.data.gov.uk/id/local-authority/32UC,Waste,Workshop Parts,12/01/2023,30017750,410.71 ,Partic Motor Spares Ltd
East Lindsey District Council,http://statistics.data.gov.uk/id/local-authority/32UC,Waste,Workshop Parts,10/01/2023,30017751,"1,551.15 ",N T Shaw of Louth
East Lindsey District Council,http://statistics.data.gov.uk/id/local-authority/32UC,Waste,Workshop Parts,10/01/2023,30017753,469.19 ,Dennis Eagle Ltd
East Lindsey District Council,http://statistics.data.gov.uk/id/local-authority/32UC,Waste,Workshop Parts,10/01/2023,30017754,258.05 ,Dennis Eagle Ltd
East Lindsey District Council,http://statistics.data.gov.uk/id/local-authority/32UC,Waste,Workshop Parts,24/01/2023,30017762,279.92 ,Partic Motor Spares Ltd
East Lindsey District Council,http://statistics.data.gov.uk/id/local-authority/32UC,Waste,Workshop Parts,24/01/2023,30017822,299.97 ,Partic Motor Spares Ltd
East Lindsey District Council,http://statistics.data.gov.uk/id/local-authority/32UC,Waste,Workshop Parts,31/01/2023,30017835,339.12 ,Pirtek
East Lindsey District Council,http://statistics.data.gov.uk/id/local-authority/32UC,Waste,Workshop Parts,31/01/2023,30017847,865.00 ,Ford and Slater DAF (Lincoln Newark)
East Lindsey District Council,http://statistics.data.gov.uk/id/local-authority/32UC,Waste,Workshop Parts,31/01/2023,30017848,375.00 ,Ford and Slater DAF (Lincoln Newark)
East Lindsey District Council,http://statistics.data.gov.uk/id/local-authority/32UC,Waste,Workshop Parts,17/01/2023,30017861,410.00 ,M E Autoparts Limited
East Lindsey District Council,http://statistics.data.gov.uk/id/local-authority/32UC,Waste,Workshop Parts,26/01/2023,30017863,425.62 ,Partic Motor Spares Ltd
East Lindsey District Council,http://statistics.data.gov.uk/id/local-authority/32UC,Waste,Workshop Parts,31/01/2023,30017881,524.34 ,Partic Motor Spares Ltd
East Lindsey District Council,http://statistics.data.gov.uk/id/local-authority/32UC,Waste,Workshop Parts,31/01/2023,30017883,910.94 ,Waste Parts UK Ltd
East Lindsey District Council,http://statistics.data.gov.uk/id/local-authority/32UC,Waste,Workshop Parts,31/01/2023,30017961,319.76 ,Partic Motor Spares Ltd
East Lindsey District Council,http://statistics.data.gov.uk/id/local-authority/32UC,Waste,Workshop Parts,17/01/2023,30018055,375.00 ,M J Windscreens Ltd
East Lindsey District Council,http://statistics.data.gov.uk/id/local-authority/32UC,Waste,Workshop Parts,17/01/2023,30018060,383.97 ,N T Shaw of Louth
East Lindsey District Council,http://statistics.data.gov.uk/id/local-authority/32UC,Waste,Workshop Parts,31/01/2023,30018098,311.14 ,Partic Motor Spares Ltd
East Lindsey District Council,http://statistics.data.gov.uk/id/local-authority/32UC,Waste,Workshop Parts,07/02/2023,30018236,"1,602.76 ",Terberg Matec UK
East Lindsey District Council,http://statistics.data.gov.uk/id/local-authority/32UC,Waste,Workshop Parts,07/02/2023,30018265,625.00 ,Eclipse Automotive Technology Ltd
East Lindsey District Council,http://statistics.data.gov.uk/id/local-authority/32UC,Waste,Workshop Parts,31/01/2023,30018318,343.60 ,Pirtek
East Lindsey District Council,http://statistics.data.gov.uk/id/local-authority/32UC,Waste,Workshop Parts,31/01/2023,30018319,216.30 ,John Darke Ltd (Ford)
East Lindsey District Council,http://statistics.data.gov.uk/id/local-authority/32UC,Waste,Workshop Parts,31/01/2023,30018320,393.50 ,Bucher Municipal
East Lindsey District Council,http://statistics.data.gov.uk/id/local-authority/32UC,Waste,Workshop Parts,24/01/2023,30018357,354.36 ,N T Shaw of Louth
East Lindsey District Council,http://statistics.data.gov.uk/id/local-authority/32UC,Waste,Workshop Parts,24/01/2023,30018362,240.00 ,N T Shaw of Louth
East Lindsey District Council,http://statistics.data.gov.uk/id/local-authority/32UC,Waste,Workshop Parts,31/01/2023,30018637,211.12 ,Dennis Eagle Ltd
